[Event "26th Womens ECCC 2022"]
[Site "Mayrhofen"]
[Date "2022.10.09"]
[Round "7.31"]
[White "Thorsteinsdottir, Hallgerdur"]
[Black "Schnegg, Anna-Lena"]
[Result "1-0"]
[ECO "C41"]
[WhiteElo "1959"]
[BlackElo "2154"]
[Annotator "TA"]
[PlyCount "72"]
[EventDate "2022.10.03"]
[EventType "team-tourn"]
[EventCountry "AUT"]
[SourceTitle "playchess.com"]
[Source "ChessBase"]
[SourceQuality "1"]
[TimeControl "40/5400+30:1800+30"]

{[%evp 17,72,44,66,15,38,14,35,33,33,24,36,36,48,52,66,55,66,22,69,8,51,-21,-20,-21,-27,-17,0,0,0,0,0,-64,-17,-49,30,-56,-77,-206,-204,-206,-160,-140,-137,-308,-239,-306,-310,-306,-303,-299,-240,-243,-240,-952,-968,-987,-555]} 1. e4 {[%emt 0:00:06]} e5 {[%emt 0:00:05]} 2. Nf3 {[%emt 0:00:11]} d6 {[%emt 0:00:07]} 3. d4 {[%emt 0:00:24]} exd4 {[%emt 0:00:18]} 4. Nxd4 {[%emt 0:00:16]} Nf6 {[%emt 0:00:20]} 5. Nc3 {[%emt 0:00:40]} Be7 {[%emt 0:00:51]} 6. Bf4 {[%emt 0:00:52]} O-O {[%emt 0:01:00]} 7. Qd2 {[%emt 0:01:10]} Nc6 {[%emt 0:00:29]} 8. O-O-O {[%emt 0:00:47]} Nxd4 {[%emt 0:02:08]} 9. Qxd4 {[%emt 0:00:26]} Be6 {[%emt 0:00:26]} 10. Bc4 {C41: Philidor Defence.} (10. Kb1 $14) 10... Nd7 {[%emt 0:12:59]} 11. Nd5 {[%emt 0:08:38]} Nb6 {[%emt 0:07:22]} 12. Nxe7+ {[%emt 0:05:10] White is slightly better.} Qxe7 {[%emt 0:00:13] [#]} 13. Be2 $146 {[%emt 0:17:25]} ({Predecessor:} 13. Bd3 Rfd8 14. e5 dxe5 15. Qxe5 Nd5 16. Bd2 Bg4 17. Qxe7 Nxe7 18. Rde1 Nd5 19. f4 {½-½ (43) Sutovsky,E (2633)-Jimenez Garcia,E (2290) Batumi 2018}) 13... a5 {[%emt 0:11:24]} 14. a3 {[%emt 0:24:59]} Rfd8 {[%emt 0:11:57]} 15. h4 {[%emt 0:02:14]} d5 {[%emt 0:09:08]} 16. h5 {[%emt 0:05:00] White has more active pieces.} c5 {[%emt 0:11:26]} 17. Qe3 {[%emt 0:00:54] [#] Qb3 is the strong threat.} (17. Qe5 $5 {[%cal Rh5h6]}) 17... Rac8 {[%emt 0:05:26]} (17... d4 $11 18. Qg3 Bc4) 18. h6 {[%emt 0:01:16]} (18. Qb3 $14 Qf6 19. g3) 18... g6 {[%emt 0:01:13]} (18... d4 $5 {[%cal Rd4e3]} 19. Qd2 (19. Qg3 g6 $14) 19... g6 $14) 19. Qc3 {[%emt 0:10:14]} (19. Qb3 $14 Rc6 20. Qg3) 19... d4 $11 {[%emt 0:02:31]} 20. Qxa5 {[%emt 0:00:13]} Rc6 {[%emt 0:05:44]} 21. Bb5 {[%emt 0:03:41] A strong pair of Bishops.} Nc4 {[%emt 0:05:42]} 22. Qa4 {[%emt 0:00:47]} Nb6 {[%emt 0:02:39]} 23. Qa5 {[%emt 0:00:06]} Nc4 {[%emt 0:00:45]} 24. Bxc4 {[%emt 0:00:34]} (24. Qa4 $1 $11 Nb6 25. Qa5) 24... Bxc4 $15 {[%emt 0:00:08]} 25. f3 {[%emt 0:02:19]} Ra6 {[%emt 0:05:46]} ({Black should try} 25... Rdc8 $15) 26. Qd2 {[%emt 0:00:58]} (26. Qc7 $11 Qxc7 27. Bxc7) 26... b5 {[%emt 0:00:52] White must now prevent ...b4.} 27. c3 {[%emt 0:09:16] [#] Prevents b4.} (27. Bg3 $17) 27... Bb3 $1 $19 {[%emt 0:01:36]} 28. Kb1 {[%emt 0:02:12]} Bxd1 {[%emt 0:01:07]} 29. Rxd1 {[%emt 0:00:11]} d3 {[%emt 0:00:37]} 30. e5 $2 {[%emt 0:00:55] This move loses the game for White.} (30. g4 $17) 30... Rd5 {[%emt 0:00:37]} 31. Qe3 {[%emt 0:00:35]} c4 {[%emt 0:00:29]} 32. Qe4 {[%emt 0:01:06]} Qe6 {[%emt 0:00:31]} 33. Bg3 {[%emt 0:01:05]} Ra8 {[%emt 0:00:31]} 34. f4 {[%emt 0:00:30]} Rad8 {[%emt 0:00:28][%cal Ob5b4] Strongly threatening ...b4!} 35. Bh4 $2 {[%emt 0:00:39]} (35. Be1) 35... Qg4 $1 {[%emt 0:00:33][%csl LRd1,LRh4]} 36. Qe1 {[%emt 0:01:19]} d2 {[%emt 0:00:00][%mdl 32768] Weighted Error Value: White=0.52/Black=0.20 (precise) . Loss on time!?} 1-0

[Event "26th Womens ECCC 2022"]
[Site "Mayrhofen"]
[Date "2022.10.09"]
[Round "7.32"]
[White "Konecny, Sophie"]
[Black "Thorsteinsdottir, Gudlaug"]
[Result "1/2-1/2"]
[ECO "D00"]
[WhiteElo "1848"]
[BlackElo "2014"]
[Annotator "TA"]
[PlyCount "107"]
[EventDate "2022.10.03"]
[EventType "team-tourn"]
[EventCountry "AUT"]
[SourceTitle "playchess.com"]
[Source "ChessBase"]
[SourceQuality "1"]
[TimeControl "40/5400+30:1800+30"]

{[%evp 9,107,15,22,24,26,15,22,29,22,20,43,43,52,34,33,35,35,28,32,22,28,26,25,8,16,-21,58,-72,66,66,66,-18,-10,-31,-21,-41,-20,-39,-34,-72,-19,-37,-47,-64,-52,-87,-84,-573,-44,-96,-45,-98,-96,-98,0,-7,75,82,65,67,77,69,79,79,90,100,104,75,181,188,148,0,0,-102,0,0,59,2,0,0,77,0,28,0,0,0,0,0,0,0,0,0,0,0,0,0,0,0,0,0]} 1. d4 {[%emt 0:00:03]} d5 {[%emt 0:00:20]} 2. Nc3 {[%emt 0:00:06]} Nf6 {[%emt 0:00:47]} 3. Bf4 {[%emt 0:00:06]} c6 {[%emt 0:01:57]} 4. e3 {[%emt 0:00:26]} Bf5 {[%emt 0:02:35]} 5. f3 {[%emt 0:00:55]} e6 {[%emt 0:02:21]} 6. g4 {[%emt 0:00:56] D00: 1 d4 d5: Unusual lines.} Bg6 {[%emt 0:00:09]} 7. h4 {[%emt 0:00:32] Threatens to win with h5.} h6 {[%emt 0:03:45]} 8. Bd3 {[%emt 0:02:52]} Bxd3 {[%emt 0:02:53]} 9. Qxd3 {[%emt 0:03:16]} Bd6 {[%emt 0:01:46]} 10. Nge2 {[%emt 0:05:22]} Na6 {[%emt 0:04:34] 10...Qe7 is the modern continuation.} 11. a3 {[%emt 0:02:58]} Qe7 {[%emt 0:04:18]} 12. Bxd6 {[%emt 0:06:46]} Qxd6 {[%emt 0:00:12]} 13. O-O-O {[%emt 0:02:53]} O-O-O {[%emt 0:05:40] [#]} 14. g5 $146 {[%emt 0:06:49]} ({Predecessor:} 14. e4 dxe4 15. Nxe4 Nxe4 16. Qxe4 Nc7 17. f4 Qd5 18. Qxd5 {½-½ (18) Reichelt,F (1957)-Weisshuhn,G (2004) Nordrheinwestfalen 2019}) 14... Nd7 {[%emt 0:06:18]} 15. e4 {[%emt 0:04:59][%cal Be3e4,Be4e5][%mdl 32]} Nb6 {[%emt 0:01:43]} 16. Kb1 {[%emt 0:06:43]} Nc4 {[%emt 0:02:07]} 17. Na2 {[%emt 0:07:37]} b5 {[%emt 0:05:38]} (17... Kb8 $11) 18. f4 {[%emt 0:09:04]} (18. e5 $14 {keeps the upper hand.} Qe7 19. f4) 18... Rd7 {[%emt 0:06:51]} ({Black should try} 18... dxe4 $17 19. Qxe4 Nc5 $1) 19. e5 $14 {[%emt 0:06:16]} Qe7 {[%emt 0:00:25]} 20. Ng1 {[%emt 0:04:04]} (20. Nac1 $14) 20... Rb7 $40 {[%emt 0:01:51][%mdl 128] White needs to defend precisely.} 21. Nf3 {[%emt 0:02:28]} b4 {[%emt 0:07:56][%cal Rb4a3]} 22. a4 {[%emt 0:02:52]} c5 {[%emt 0:06:10]} 23. Ka1 {[%emt 0:07:21]} Rb6 {[%emt 0:04:12][%cal Ob4b3]} 24. b3 {[%emt 0:03:19]} Na5 {[%emt 0:09:53]} (24... Na3 $17) 25. Nd2 {[%emt 0:03:44]} (25. gxh6 {seems wilder.} gxh6 26. dxc5 Nxc5 27. Qe3) 25... Kb8 {[%emt 0:03:38]} 26. Rc1 {[%emt 0:07:16]} Rc8 {[%emt 0:05:37]} 27. Nf3 {[%emt 0:01:30]} c4 {[%emt 0:00:29]} 28. Qe3 {[%emt 0:00:28][%mdl 8192]} (28. Qd1 $17) 28... Rbc6 $2 {[%emt 0:01:07]} (28... cxb3 $19 29. cxb3 Rc3 $1 {[%mdl 512]}) 29. Kb2 {[%emt 0:01:00]} ({Better is} 29. h5 $15) 29... Qc7 {[%emt 0:01:36]} (29... cxb3 $6 30. cxb3 Nc4+ 31. bxc4 $11) (29... Qf8 $17) 30. Qe2 {[%emt 0:01:24]} (30. gxh6 $15 gxh6 31. Rhg1) 30... Qb6 {[%emt 0:00:52]} 31. Rhd1 {[%emt 0:00:56]} cxb3 {[%emt 0:00:59]} (31... Ka8 $17) 32. cxb3 {[%emt 0:00:06]} Rc3 {[%emt 0:01:58]} 33. Nxc3 $16 {[%emt 0:01:00]} bxc3+ {[%emt 0:00:13]} 34. Rxc3 {[%emt 0:00:14]} Rxc3 {[%emt 0:00:14]} 35. Kxc3 {[%emt 0:00:03][%cal Bb2c3,Bc3d2,Bd2e1,Be1f2][%mdl 32] Qb5 is the strong threat.} Qxb3+ {[%emt 0:03:27]} 36. Kd2 {[%emt 0:00:19] Black must now prevent Qb5+.} Nc4+ {[%emt 0:00:40]} 37. Ke1 {[%emt 0:00:29] aiming for Qd3.} Nb4 {[%emt 0:00:31] Inhibits Qd3.} 38. Kf2 {[%emt 0:00:59][%cal Of4f5] Inhibits Ne3.} a5 {[%emt 0:02:23]} (38... Kc7 $16) 39. gxh6 $18 {[%emt 0:00:57]} gxh6 {[%emt 0:00:06]} 40. h5 {[%emt 0:00:42]} (40. Rg1 $1 $16) 40... Qxa4 $11 {[%emt 0:00:51]} 41. Nd2 {[%emt 0:02:56] [#] Prevents Qb3.} (41. Rg1 $11 {remains equal.}) 41... Nb2 {[%emt 0:04:19] Pair of Knights!} (41... Nd3+ $1 $17 {[%mdl 512]} 42. Kf3 Nc1 $1 43. Rxc1 Qa3+ 44. Nb3 Qxb3+ 45. Kg4 Kb7) 42. Rb1 {[%emt 0:02:39]} Qa2 {[%emt 0:11:39]} (42... Qc2 $1 $11) 43. Qb5+ {[%emt 0:02:37]} (43. f5 $14 Nc4 44. Rd1 (44. fxe6 fxe6 45. Rd1 Kc7 $16)) 43... Ka7 {[%emt 0:00:22]} 44. Qd7+ {[%emt 0:04:20]} Ka6 {[%emt 0:00:19] [#]} (44... Kb6 $1 $11) 45. Qd6+ {[%emt 0:01:25]} (45. Kg3 $1 $16 N2d3 46. Qc8+ Ka7 47. Qc7+ Ka6 48. Qc8+ Ka7 49. Qc3) 45... Kb5 {[%emt 0:01:29]} 46. Qd7+ {[%emt 0:01:04]} Kb6 {[%emt 0:00:11] The position is equal.} 47. Qxf7 {[%emt 0:02:23] Really sharp!} Nc4 {[%emt 0:04:22]} 48. Qxe6+ {[%emt 0:00:39]} Ka7 {[%emt 0:00:22]} 49. Qe7+ {[%emt 0:02:08]} (49. Qxh6 Nxd2 50. Rxb4 Ne4+ 51. Kf3 Qa3+ 52. Kg4 Qg3+ 53. Kf5 Qh3+ 54. Kg6 Qg4+ 55. Kh7 axb4 56. Qg7+ Qxg7+ 57. Kxg7 b3 $15) 49... Ka6 {[%emt 0:00:42]} 50. Qe6+ {[%emt 0:03:34]} Ka7 $1 {[%emt 0:00:23]} 51. Qf7+ {[%emt 0:01:49]} ({Reject} 51. Qxh6 Nxd2 52. Rxb4 axb4 $17) 51... Ka6 {[%emt 0:00:49]} 52. Qg6+ {[%emt 0:01:50]} Ka7 {[%emt 0:00:55]} 53. Qg7+ {[%emt 0:01:28]} ({Much weaker is} 53. Qxh6 Nxd2 54. Rxb4 axb4 $17) 53... Ka8 {[%emt 0:00:32]} 54. Qxh6 {Never resign too early!  Weighted Error Value: White=0.36/Black=0.32} 1/2-1/2